fUST/lending_fUST_20250811
["ID","MTS","AMOUNT","RATE_DAILY","PERIOD"]
[378538222,1754907044196,-417.15472785,0.000251,10]
[378538223,1754907044206,-843.18994796,0.000251,10]
[378538224,1754907044216,-231.9940742,0.000251,10]
[378538225,1754907044226,-461.69158338,0.000251,10]
[378538226,1754907044235,-160.0,0.000251,10]
[378538227,1754907044244,-215.4905783,0.000251,10]
[378538228,1754907044254,-46641.88,0.000251,2]
[378538229,1754907044263,-12671.21867243,0.000251,10]
[378538230,1754907044272,-266.1,0.00025102,3]
[378538231,1754907044281,-2434.74389024,0.00025108,2]
[378538232,1754907044290,-179.89206476,0.00025132,2]
[378538233,1754907044300,-150.0,0.00025144,2]
[378538234,1754907044311,-431.363232,0.00025144,2]
[378538235,1754907044320,-431.363232,0.00025144,2]
[378538236,1754907044330,-2123.01740545,0.00025163,2]
[378538237,1754907044340,-6481.49358908,0.00025164,2]
[378538238,1754907044349,-150.0,0.00025173,2]
[378538239,1754907044359,-3871.89040163,0.00025185,2]
[378538240,1754907044369,-50022.35,0.000252,7]
[378538241,1754907044378,-500.0,0.00025206,2]
[378538242,1754907044387,-231.0,0.00025213,2]
[378538243,1754907044397,-160.0,0.00025236,4]
[378538244,1754907044406,-3500.0,0.0002526,2]
[378538245,1754907044415,-468.427,0.00025264,9]
[378538246,1754907044424,-2131.78665051,0.00025265,2]
[378538247,1754907044433,-860.0,0.00025269,2]
[378538248,1754907044442,-231.0,0.00025273,2]
[378538249,1754907044453,-501.48,0.00025298,2]
[378538250,1754907044462,-2200.0,0.00025298,2]
[378538251,1754907044471,-861.0,0.00025402,2]
[378538252,1754907044480,-300.0,0.00025421,2]
[378538253,1754907044490,-589.411445,0.00025472,2]
[378538254,1754907044500,-231.0,0.00025474,2]
[378538255,1754907044509,-500.0,0.0002548,2]
[378538256,1754907044518,-231.0,0.00025555,2]
[378538257,1754907044527,-231.0,0.00025608,2]
[378538258,1754907044536,-650.0,0.00025612,2]
[378538259,1754907044546,-3000.0,0.00025612,2]
[378538260,1754907044555,-508.84191194,0.00025612,2]
[378538261,1754907044564,-3000.0,0.00025612,2]
[378538262,1754907044574,-3000.0,0.00025612,2]
[378538263,1754907044583,-3000.0,0.00025612,2]
[378538264,1754907044593,-266.1,0.00025622,4]
[378538265,1754907044602,-1339.05384531,0.00025664,2]
[378538266,1754907044611,-2501.06,0.00025713,7]
[378538267,1754907044620,-160.0,0.00025718,5]
[378538268,1754907044630,-330.32819124,0.00025721,2]
[378538269,1754907044639,-500.0,0.00025754,2]
[378538270,1754907044649,-900.0,0.000258,2]
[378538271,1754907044658,-1137.42634322,0.00025808,2]
[378538272,1754907045081,-1362.57365678,0.00025808,2]
[378538273,1754907045091,-605.75634322,0.00025817,2]
[378538275,1754907045446,-354.24365678,0.00025817,2]
[378538276,1754907045455,-231.0,0.00025865,2]
[378538277,1754907045466,-151.0,0.000259,7]
[378538278,1754907045475,-5162.72,0.000259,7]
[378538279,1754907045485,-450.0,0.00025968,2]
[378538280,1754907045494,-861.0,0.00025984,2]
[378538281,1754907045504,-200.0,0.00026,10]
[378538282,1754907045513,-200.0,0.00026,10]
[378538283,1754907045522,-200.0,0.00026,10]
[378538284,1754907045531,-200.0,0.00026,10]
[378538285,1754907045540,-200.0,0.00026,10]
[378538286,1754907045550,-200.0,0.00026,10]
[378538287,1754907045559,-200.0,0.00026,10]
[378538288,1754907045568,-200.0,0.00026,10]
[378538289,1754907045578,-200.0,0.00026,10]
[378538290,1754907045587,-200.0,0.00026,10]
[378538291,1754907045596,-200.0,0.00026,10]
[378538292,1754907045605,-200.0,0.00026,10]
[378538293,1754907045614,-200.0,0.00026,10]
[378538295,1754907045624,-200.0,0.00026,10]
[378538296,1754907045633,-200.0,0.00026,10]
[378538297,1754907045643,-200.0,0.00026,10]
[378538298,1754907045652,-200.0,0.00026,10]
[378538299,1754907045661,-200.0,0.00026,10]
[378538300,1754907045671,-200.0,0.00026,10]
[378538301,1754907045681,-200.0,0.00026,10]
[378538302,1754907045691,-200.0,0.00026,10]
[378538303,1754907045701,-200.0,0.00026,10]
[378538304,1754907045711,-200.0,0.00026,10]
[378538305,1754907045720,-200.0,0.00026,10]
[378538306,1754907045729,-200.0,0.00026,10]
[378538307,1754907045739,-200.0,0.00026,10]
[378538308,1754907045748,-200.0,0.00026,10]
[378538309,1754907045758,-200.0,0.00026,10]
[378538310,1754907045767,-200.0,0.00026,10]
[378538311,1754907045777,-200.0,0.00026,10]
[378538312,1754907045787,-200.0,0.00026,10]
[378538313,1754907045796,-200.0,0.00026,10]
[378538314,1754907045806,-200.0,0.00026,10]
[378538315,1754907045815,-200.0,0.00026,10]
[378538316,1754907045825,-200.0,0.00026,10]
[378538318,1754907045834,-200.0,0.00026,10]
[378538320,1754907045844,-200.0,0.00026,10]
[378538322,1754907045853,-200.0,0.00026,10]
[378538324,1754907045862,-200.0,0.00026,10]
[378538326,1754907045871,-200.0,0.00026,10]
[378538328,1754907045880,-200.0,0.00026,10]
[378538330,1754907045890,-200.0,0.00026,10]
[378538332,1754907045899,-200.0,0.00026,10]
[378538334,1754907045908,-200.0,0.00026,10]
[378538336,1754907045919,-200.0,0.00026,10]
[378538338,1754907045929,-200.0,0.00026,10]
[378538340,1754907045939,-200.0,0.00026,10]
[378538342,1754907045949,-200.0,0.00026,10]
[378538344,1754907045959,-200.0,0.00026,10]
[378538346,1754907045972,-200.0,0.00026,10]
[378538348,1754907045982,-200.0,0.00026,10]
[378538350,1754907045992,-200.0,0.00026,10]
[378538352,1754907046001,-256.091069,0.00026,10]
[378538354,1754907046010,-260.23,0.00026,14]
[378538356,1754907046021,-589.411445,0.00026,10]
[378538357,1754907046031,-500.0,0.00026028,2]
[378538360,1754907046041,-231.0,0.0002606,2]
[378538362,1754907046051,-231.0,0.00026092,2]
[378538364,1754907046060,-231.0,0.00026096,2]
[378538366,1754907046070,-431.363232,0.00026103,2]
[378538368,1754907046079,-431.363232,0.00026103,2]
[378538370,1754907046088,-431.363232,0.00026103,2]
[378538372,1754907046098,-431.363232,0.00026103,2]
[378538389,1754907046248,-431.363232,0.00026103,2]
[378538391,1754907046257,-231.0,0.00026135,2]
[378538393,1754907046266,-266.1,0.00026142,4]
[378538394,1754907046275,-750.0,0.0002616,2]
[378538396,1754907046284,-1224.12422971,0.0002616,2]
[378538398,1754907046294,-3500.0,0.0002616,2]
[378538400,1754907046303,-3500.0,0.0002616,2]
[378538402,1754907046312,-3500.0,0.0002616,2]
[378538404,1754907046321,-231.0,0.00026165,2]
[378538406,1754907046331,-3292.0,0.0002619,2]
[378538408,1754907046340,-13154.25,0.000262,7]
[378538410,1754907046350,-160.0,0.000262,6]
[378538412,1754907046359,-150.0,0.00026287,2]
[378538414,1754907046368,-48127.6077525,0.000263,7]
[378538445,1754907046645,-256.97125483,0.00019997,2]
[378538447,1754907046655,-251.93,0.0002269,3]
[378538449,1754907046664,-160.0,0.00024,7]
[378538451,1754907046674,-503.86,0.0002406,3]
[378538453,1754907046683,-160.0,0.000249,3]
[378538455,1754907046693,-151.0,0.000249,7]
[378538457,1754907046702,-1894.7422475,0.000263,7]
[378538459,1754907046711,-46641.88,0.000263,2]
[378538461,1754907046720,-500.0,0.00026302,2]
[378538463,1754907046730,-151.0,0.00026312,2]
[378538465,1754907046739,-5735.09973225,0.00026312,2]
[378538467,1754907046751,-13452.19579013,0.00026312,2]
[378538469,1754907046760,-254.05,0.00026345,2]
[378538471,1754907046771,-800.0,0.00026356,2]
[378538473,1754907046781,-1060.0,0.00026365,2]
[378538476,1754907046794,-300.0,0.00026373,2]
[378538478,1754907046804,-589.411445,0.00026452,2]
[378538480,1754907046813,-8734.38280604,0.00026478,2]
[378538482,1754907046823,-254.05,0.00026499,2]
[378538484,1754907046832,-600.0,0.00026516,2]
[378538486,1754907046841,-800.0,0.00026525,2]
[378538488,1754907046851,-800.0,0.00026538,2]
[378538490,1754907046860,-500.0,0.00026576,2]
[378538492,1754907046869,-159.0,0.00026581,7]
[378538494,1754907046878,-254.05,0.00026652,2]
[378538496,1754907046888,-266.1,0.00026662,4]
[378538498,1754907046898,-408.392807,0.00026676,2]
[378538500,1754907046907,-160.0,0.00026682,7]
[378538502,1754907046916,-533.44544465,0.00026696,2]
[378538504,1754907046926,-600.0,0.00026696,2]
[378538506,1754907046935,-512.56739523,0.00026708,2]
[378538508,1754907046944,-4000.0,0.00026708,2]
[378538510,1754907046953,-4000.0,0.00026708,2]
[378538512,1754907046962,-1272.04343279,0.00026708,2]
[378538514,1754907046976,-171.29731,0.00026712,2]
[378538516,1754907046986,-800.0,0.00026726,2]
[378538518,1754907046995,-589.411445,0.00026805,10]
[378538520,1754907047005,-150.0,0.00026849,2]
[378538522,1754907047015,-500.0,0.0002685,2]
[378538524,1754907047024,-164.33052138,0.0002687,2]
[378538526,1754907047033,-1160.0,0.00026913,2]
[378538528,1754907047042,-6481.49358908,0.00026918,6]
[378538530,1754907047052,-600.0,0.00026921,2]
[378538532,1754907047062,-348.26,0.00026951,7]
[378538534,1754907047071,-2501.06,0.00026951,7]
[378538536,1754907047080,-600.0,0.00026974,2]
[378538538,1754907047090,-200.0,0.0002699,15]
[378538540,1754907047099,-200.0,0.0002699,15]
[378538542,1754907047109,-200.0,0.0002699,15]
[378538544,1754907047118,-200.0,0.0002699,15]
[378538546,1754907047128,-200.0,0.0002699,15]
[378538548,1754907047137,-200.0,0.0002699,15]
[378538550,1754907047146,-200.0,0.0002699,15]
[378538552,1754907047156,-200.0,0.0002699,15]
[378538554,1754907047166,-200.0,0.0002699,15]
[378538556,1754907047175,-200.0,0.0002699,15]
[378538558,1754907047185,-200.0,0.0002699,15]
[378538560,1754907047195,-200.0,0.0002699,15]
[378538562,1754907047204,-342.0,0.0002699,15]
[378538564,1754907047213,-789.9796898,0.00027064,2]
[378538566,1754907047222,-500.0,0.00027124,2]
[378538568,1754907047231,-160.0,0.00027165,8]
[378538570,1754907047240,-266.1,0.00027182,5]
[378538572,1754907047248,-5162.72,0.000272,7]
[378538574,1754907047257,-203.566575,0.000272,2]
[378538575,1754907047266,-343.066691,0.00027208,7]
[378538577,1754907047276,-151.0,0.00027208,7]
[378538578,1754907047286,-600.0,0.00027252,2]
[378538580,1754907047297,-3112.1798949,0.00027256,2]
[378538582,1754907047308,-4500.0,0.00027256,2]
[378538584,1754907047318,-151.0,0.000273,7]
[378538585,1754907047328,-151.0,0.000273,7]
[378538587,1754907047337,-150.0,0.000273,2]
[378538589,1754907047347,-200.0,0.0002731,18]
[378538590,1754907047356,-589.411445,0.00027397,6]
[378538592,1754907047366,-3262.03,0.00027397,6]
[378538594,1754907047375,-151.0,0.00027397,7]
[378538595,1754907047385,-151.0,0.00027397,7]
[378538597,1754907047394,-500.0,0.00027397,5]
[378538599,1754907047404,-300.0,0.00027397,5]
[378538600,1754907047413,-160.06712286,0.00027397,5]
[378538602,1754907047422,-1000.0,0.00027397,5]
[378538604,1754907047432,-500.0,0.00027397,5]
[378538605,1754907047441,-500.0,0.00027398,2]
[378538607,1754907047450,-151.0,0.00027398,2]
[378538608,1754907047459,-203.14305158,0.00027398,2]
[378538610,1754907047468,-151.0,0.00027398,2]
[378538612,1754907047478,-500.0,0.00027398,2]
[378538613,1754907047487,-151.0,0.00027398,2]
[378538615,1754907047497,-500.0,0.00027398,2]
[378538617,1754907047505,-500.0,0.00027398,2]
[378538618,1754907047514,-151.0,0.00027398,2]
[378538620,1754907047524,-151.0,0.00027398,2]
[378538622,1754907047533,-151.0,0.00027398,2]
[378538623,1754907047542,-151.0,0.00027398,2]
[378538625,1754907047551,-151.0,0.00027398,2]
[378538627,1754907047560,-151.0,0.00027398,2]
[378538628,1754907047569,-151.0,0.00027398,2]
[378538630,1754907047578,-151.0,0.00027398,2]
[378538632,1754907047587,-267.43775942,0.00027398,2]
[378538634,1754907047597,-4858.64828442,0.00027398,2]
[378538635,1754907047608,-7584.04630646,0.00027398,2]
[378538637,1754907047617,-598.45480207,0.00027398,2]
[378538639,1754907047626,-2393.81920826,0.00027398,2]
[378538640,1754907047635,-5380.70712537,0.00027398,2]
[378538642,1754907047644,-3914.64431089,0.00027398,2]
[378538644,1754907047656,-506.61173603,0.00027398,2]
[378538673,1754907048027,-500.0,0.00020773,2]
[378538675,1754907048037,-500.0,0.00021047,2]
[378538677,1754907048047,-160.0,0.000251,10]
[378538679,1754907048058,-151.0,0.00027397,7]
[378538680,1754907048068,-1444.15742652,0.00027398,2]
[378538682,1754907048078,-3239.78676669,0.00027398,2]
[378538684,1754907048089,-3014.05974828,0.00027398,2]
[378538690,1754907048197,-2192.34888678,0.00027398,2]
[378538692,1754907048208,-530.05303485,0.00027398,2]
[378538694,1754907048801,-213.350436,0.000249,7]
[378538695,1754907048812,-355.7244777,0.00024943,2]
[378538696,1754907048865,-859.25177995,0.00024943,2]
[378538697,1754907049149,-1022.98718273,0.00024943,2]
[378538698,1754907049165,-1002.103048,0.00027,2]
[378538699,1754907049184,-42.1701904,0.00027398,2]
[378538700,1754907049199,-538.38470089,0.00027398,2]
[378538701,1754907049218,-1750.5082001,0.00027398,2]
[378538702,1754907049236,-5144.85901821,0.00027398,2]
[378538703,1754907049255,-886.22153231,0.00027398,2]
[378538704,1754907049272,-3541.34124312,0.00027398,2]
[378538705,1754907049284,-528.25301419,0.00027398,2]
[378538706,1754907049302,-2113.01205674,0.00027398,2]
[378538707,1754907049316,-4749.52285054,0.00027398,2]
[378538708,1754907049332,-589.411445,0.00027398,6]
[378538709,1754907049345,-589.411445,0.00027398,6]
[378538710,1754907049361,-389.91761913,0.00027398,2]
[378538711,1754907049375,-401.98872737,0.00027398,2]
[378538712,1754907049389,-1607.95490948,0.00027398,2]
[378538713,1754907049405,-3614.28064778,0.00027398,2]
[378538714,1754907049419,-169.03011569,0.00027398,2]
[378538715,1754907049434,-589.411445,0.00027399,6]
[378538716,1754907049448,-589.411445,0.00027399,6]
[378538717,1754907049462,-13154.25,0.000274,7]
[378538718,1754907049475,-46641.88,0.000274,2]
[378538719,1754907049489,-150.0,0.0002743,2]
[378538720,1754907049502,-156.466603,0.00027432,2]
[378538721,1754907049516,-589.411445,0.00027432,2]
[378538722,1754907049534,-159.229452,0.00027432,2]
[378538723,1754907049548,-193.477608,0.00027432,2]
[378538724,1754907049562,-800.0,0.00027447,2]
[378538725,1754907049576,-1260.0,0.00027461,2]
[378538726,1754907049590,-900.0,0.00027468,5]
[378538727,1754907049604,-18352.3633864,0.000275,7]
[378538728,1754907049621,-1810.92470628,0.000275,7]
[378538729,1754907049638,-795.61375639,0.000275,7]
[378538730,1754907062742,347.133885,0.00013699,2]
[378538732,1754907141548,169.82,0.00030136,120]
[378538733,1754907162514,5714.73407023,0.000199,2]
[378538737,1754907339176,9812.91728637,0.00019636,2]
[378538738,1754907339208,187.08271363,0.00019636,2]
[378538739,1754907347546,5524.24293443,0.000199,2]
[378538740,1754907355895,1670.14,0.00030136,120]
[378538741,1754907364249,500.0,0.0003,120]
[378538742,1754907379331,5627.2155047,0.00019791,2]
[378538743,1754907538106,381.08822361,0.00026218,30]
[378538744,1754907561671,5556.15128973,0.000199,2]
[378538749,1754907759927,25000.0,0.0003,120]
[378538750,1754907764483,3105.30755751,0.000199,2]
[378538751,1754907764508,2265.6386892,0.000199,2]
[378538752,1754907764755,171.29731,0.00019863,2]
[378538756,1754907940786,5174.43321038,0.000199,2]
[378538760,1754908032055,12388.63079042,0.00018997,2]
[378538761,1754908032077,12511.36920958,0.00018997,2]
[378538762,1754908054632,474.57932,0.00018997,2]
[378538763,1754908074760,7014.05147042,0.00018,2]
[378538764,1754908074784,20000.0,0.00018,2]
[378538765,1754908074807,18418.63184541,0.00018,2]
[378538766,1754908078765,1581.36815459,0.00018,2]
[378538767,1754908078787,2968.41315038,0.00018,2]
[378538768,1754908112993,5203.22648486,0.000199,2]
[378538769,1754908119233,11828.36036476,0.00017,2]
[378538770,1754908119255,20000.0,0.00017,2]
[378538771,1754908119278,4307.35202066,0.00017,2]
[378538772,1754908121944,15692.64797934,0.00018,2]
[378538773,1754908121966,8138.83238146,0.00018,2]
[378538774,1754908123456,372.2757098,0.000149,2]
[378538775,1754908123762,1000.0,0.0001,2]
[378538778,1754908126894,531.74364107,0.00019894,2]
[378538779,1754908127921,211.31874507,0.00016,2]
[378538781,1754908139493,178.43625,0.00019804,2]
[378538791,1754908215309,9567.3932726,0.00018996,2]
[378538792,1754908215331,13825.4718346,0.00018996,2]
[378538813,1754908232251,-389.99391276,0.00019956,2]
[378538814,1754908232261,-300.0,0.00019994,2]
[378538815,1754908232271,-300.0,0.00019994,2]
[378538816,1754908232280,-300.0,0.00019994,2]
[378538817,1754908232290,-272.0,0.00019994,2]
[378538818,1754908232299,-1200.0,0.00019994,2]
[378538819,1754908232308,-1200.0,0.00019995,2]
[378538820,1754908232322,-460.0,0.00019995,2]
[378538821,1754908232332,-460.0,0.00019995,2]
[378538822,1754908232341,-118.04868464,0.00019995,2]
[378538832,1754908238226,-341.95131536,0.00019995,2]
[378538833,1754908238239,-697.35,0.00019995,2]
[378538834,1754908238252,-1836.41,0.00019995,2]
[378538835,1754908238265,-460.0,0.00019995,2]
[378538836,1754908238278,-460.0,0.00019995,2]
[378538837,1754908238291,-460.0,0.00019995,2]
[378538838,1754908238303,-461.71309922,0.00019995,2]
[378538839,1754908238318,-460.0,0.00019995,2]
[378538840,1754908238330,-759.64,0.00019995,2]
[378538841,1754908238343,-460.0,0.00019995,2]
[378538842,1754908238355,-460.0,0.00019995,2]
[378538843,1754908238368,-460.0,0.00019995,2]
[378538844,1754908238380,-460.0,0.00019995,2]
[378538845,1754908238393,-175.39242547,0.00019995,2]
[378538846,1754908238406,-460.0,0.00019995,2]
[378538847,1754908238419,-460.0,0.00019995,2]
[378538848,1754908238431,-460.0,0.00019995,2]
[378538849,1754908238444,-460.0,0.00019995,2]
[378538850,1754908238457,-460.0,0.00019995,2]
[378538851,1754908238470,-50000.0,0.00019995,2]
[378538852,1754908238483,-460.0,0.00019996,2]
[378538853,1754908238497,-460.0,0.00019996,2]
[378538854,1754908238510,-460.0,0.00019996,2]
[378538855,1754908238523,-460.0,0.00019996,2]
[378538856,1754908238536,-460.0,0.00019996,2]
[378538857,1754908238550,-1220.09,0.00019996,2]
[378538858,1754908238563,-790.34,0.00019996,2]
[378538859,1754908238576,-460.0,0.00019996,2]
[378538860,1754908238589,-460.0,0.00019996,2]
[378538861,1754908238601,-460.0,0.00019996,2]
[378538862,1754908238614,-4002.66,0.00019996,2]
[378538863,1754908238627,-460.0,0.00019996,2]
[378538864,1754908238640,-723.0,0.00019996,2]
[378538865,1754908238653,-460.0,0.00019996,2]
[378538866,1754908238666,-222.39620843,0.00019996,2]
[378538867,1754908238679,-4169.66,0.00019996,2]
[378538868,1754908238689,-460.0,0.00019996,2]
[378538869,1754908238698,-902.32,0.00019996,2]
[378538870,1754908238707,-460.0,0.00019996,2]
[378538871,1754908238717,-500.0,0.00019997,2]
[378538872,1754908238727,-460.0,0.00019997,2]
[378538873,1754908238736,-744.59,0.00019997,2]
[378538874,1754908238745,-460.0,0.00019997,2]
[378538875,1754908238754,-534.59,0.00019997,2]
[378538876,1754908238763,-460.0,0.00019997,2]
[378538877,1754908238772,-460.0,0.00019997,2]
[378538878,1754908239061,-604.62,0.00019997,2]
[378538879,1754908239083,-460.0,0.00019997,2]
[378538880,1754908239094,-469.90809054,0.00019997,2]
[378538881,1754908239104,-460.0,0.00019997,2]
[378538882,1754908239114,-460.0,0.00019997,2]
[378538883,1754908239123,-460.0,0.00019997,2]
[378538884,1754908239133,-460.0,0.00019997,2]
[378538885,1754908239142,-460.0,0.00019997,2]
[378538886,1754908239151,-843.44,0.00019997,2]
[378538887,1754908239161,-460.0,0.00019997,2]
[378538888,1754908239170,-727.52,0.00019997,2]
[378538889,1754908239179,-1485.25,0.00019997,2]
[378538890,1754908239190,-460.0,0.00019997,2]
[378538891,1754908239199,-3006.63,0.00019997,2]
[378538892,1754908239208,-460.0,0.00019997,2]
[378538893,1754908239217,-460.0,0.00019997,2]
[378538894,1754908239227,-460.0,0.00019997,2]
[378538895,1754908239237,-460.0,0.00019997,2]
[378538896,1754908239247,-460.0,0.00019997,2]
[378538897,1754908239256,-460.0,0.00019997,2]
[378538898,1754908239266,-460.0,0.00019997,2]
[378538899,1754908239275,-575.09,0.00019997,2]
[378538900,1754908239285,-460.0,0.00019997,2]
[378538901,1754908239294,-460.0,0.00019997,2]
[378538902,1754908239303,-460.0,0.00019997,2]
[378538903,1754908239314,-498.6,0.00019997,2]
[378538904,1754908239325,-463.65279947,0.00019997,2]
[378538905,1754908239334,-462.49972025,0.00019997,2]
[378538906,1754908239343,-653.6,0.00019997,2]
[378538907,1754908239353,-562.63,0.00019997,2]
[378538908,1754908239362,-729.09,0.00019997,2]
[378538909,1754908239371,-460.0,0.00019997,2]
[378538910,1754908239381,-540.85126857,0.00019997,2]
[378538911,1754908239392,-999.16,0.00019997,2]
[378538912,1754908239401,-697.2,0.00019997,2]
[378538913,1754908239410,-460.0,0.00019997,2]
[378538914,1754908239420,-460.0,0.00019997,2]
[378538915,1754908239429,-2445.44,0.00019997,2]
[378538916,1754908239438,-460.0,0.00019997,2]
[378538917,1754908239447,-460.0,0.00019997,2]
[378538919,1754908239456,-460.0,0.00019997,2]
[378538921,1754908239465,-1578.08,0.00019997,2]
[378538922,1754908239475,-460.0,0.00019997,2]
[378538923,1754908239483,-1235.34,0.00019997,2]
[378538924,1754908239493,-460.0,0.00019997,2]
[378538925,1754908239502,-460.0,0.00019997,2]
[378538926,1754908239511,-478.77,0.00019997,2]
[378538927,1754908239520,-729.8,0.00019997,2]
[378538928,1754908239529,-939.63,0.00019997,2]
[378538929,1754908239538,-1533.99,0.00019997,2]
[378538932,1754908239547,-460.0,0.00019997,2]
[378538933,1754908239556,-460.0,0.00019997,2]
[378538934,1754908239565,-460.0,0.00019997,2]
[378538935,1754908239574,-1726.96,0.00019997,2]
[378538936,1754908239583,-820.36,0.00019997,2]
[378538937,1754908239592,-460.0,0.00019997,2]
[378538938,1754908239601,-6406.99,0.00019997,2]
[378538939,1754908239610,-6406.99,0.00019997,2]
[378538940,1754908239619,-6406.99,0.00019997,2]
[378538941,1754908239629,-517.65,0.00019997,2]
[378538942,1754908239638,-1078.47,0.00019997,2]
[378538943,1754908239647,-460.0,0.00019997,2]
[378538944,1754908239657,-460.0,0.00019997,2]
[378538945,1754908239666,-573.72,0.00019997,2]
[378538946,1754908239676,-460.0,0.00019997,2]
[378538947,1754908239685,-460.0,0.00019998,2]
[378538948,1754908239695,-460.0,0.00019998,2]
[378538949,1754908239705,-461.72878687,0.00019998,2]
[378538951,1754908239714,-460.0,0.00019998,2]
[378538953,1754908239723,-691.37,0.00019998,2]
[378538955,1754908239732,-460.0,0.00019998,2]
[378538957,1754908239742,-460.0,0.00019998,2]
[378538958,1754908239752,-460.0,0.00019998,2]
[378538959,1754908239761,-725.58,0.00019998,2]
[378538960,1754908239771,-460.0,0.00019998,2]
[378538961,1754908239780,-460.0,0.00019998,2]
[378538962,1754908239789,-460.0,0.00019998,2]
[378538963,1754908239798,-460.0,0.00019998,2]
[378538964,1754908239808,-460.0,0.00019998,2]
[378538965,1754908239817,-460.0,0.00019998,2]
[378538966,1754908239827,-766.22,0.00019998,2]
[378538967,1754908239837,-460.0,0.00019998,2]
[378538968,1754908239846,-410.92830796,0.00019998,2]
[378538969,1754908239855,-460.0,0.00019998,2]
[378538970,1754908239864,-460.0,0.00019998,2]
[378538971,1754908239874,-460.0,0.00019998,2]
[378538972,1754908239883,-460.0,0.00019998,2]
[378538973,1754908239891,-460.0,0.00019998,2]
[378538974,1754908239901,-809.46,0.00019998,2]
[378538975,1754908239911,-460.0,0.00019998,2]
[378538976,1754908239920,-460.0,0.00019998,2]
[378538978,1754908239930,-460.0,0.00019998,2]
[378538979,1754908239940,-460.08,0.00019998,2]
[378538980,1754908239949,-460.0,0.00019998,2]
[378538981,1754908239959,-460.0,0.00019998,2]
[378538982,1754908239968,-460.0,0.00019998,2]
[378538983,1754908239977,-460.0,0.00019998,2]
[378538984,1754908239986,-191.27928345,0.0002,2]
[378538985,1754908239995,-500.0,0.000201,2]
[378538986,1754908240005,-304.78275468,0.000201,2]
[378538987,1754908240014,-500.0,0.000201,2]
[378538988,1754908240023,-500.0,0.000201,2]
[378538989,1754908240032,-500.0,0.000201,2]
[378538990,1754908240041,-500.0,0.000201,2]
[378538991,1754908240050,-500.0,0.000201,2]
[378538992,1754908240059,-500.0,0.000201,2]
[378538993,1754908240068,-220.55604043,0.000201,2]
[378538994,1754908240078,-251.16063819,0.000201,2]
[378538995,1754908240087,-500.0,0.000201,2]
[378538996,1754908240096,-500.0,0.000201,2]
[378538997,1754908240105,-500.0,0.000201,2]
[378538998,1754908240115,-500.0,0.000201,2]
[378538999,1754908240125,-500.0,0.000201,2]
[378539000,1754908240135,-209.01178275,0.000201,2]
[378539001,1754908240144,-500.0,0.000201,2]
[378539002,1754908240154,-255.0,0.0002011,2]
[378539003,1754908240163,-161.35125,0.00020115,2]
[378539004,1754908240172,-165.0,0.00020137,3]
[378539005,1754908240182,-518.47,0.00020186,2]
[378539006,1754908240193,-460.0,0.00020186,2]